Cogmind - Beta 13 @@@ ROGUE MODE // 2024.04.01 @ 15:22:39 Player: KoT Result: Destroyed by Y-45 Defender with Heavy Assault Rifle Performance ------------- Evolutions (2) 1000 Regions Visited (3) 600 Robots Destroyed (59) 295 Value Destroyed (1539) 1539 Prototype IDs (5) 100 Alien Tech Used (0) 0 Bonus (0) 0 TOTAL SCORE: 3534 Bonus ------- None Cogmind --------- Core Integrity 0/550 Matter 216/300 Energy 83/100 System Corruption 0% Temperature Warning (365) Movement Walking (680) Ox8 Location -8/Materials Parts ------- > --- POWER (1) -------- (None) > --- PROPULSION (4) --- Armored Treads Armored Treads Armored Treads Aluminum Leg > --- UTILITY (3) ------ Huge Storage Unit > --- WEAPON (3) ------- EM Pulse Gun > --- INVENTORY (25) --- Aluminum Leg Aluminum Leg High-capacity Battery (250) Structural Scanner Sensor Array Improved Signal Interpreter Improved Terrain Scan Processor Salvage Targeting Computer Targeting Computer Target Analyzer Target Analyzer Target Analyzer Target Analyzer ECM Suite Spread Laser Spread Laser Pulse Rifle Advanced Beam Cannon Advanced Beam Cannon Heavy Assault Rifle High-powered Shotgun Enhanced Autogun Rocket Launcher Peak State ------------ > --- POWER ------------ Light Nuclear Core > --- PROPULSION ------- Armored Treads Armored Treads Armored Treads > --- UTILITY ---------- Improved Heat Sink Huge Storage Unit Targeting Computer > --- WEAPON ----------- Beam Rifle Enhanced Autogun > --- INVENTORY -------- Aluminum Leg Aluminum Leg High-capacity Battery Structural Scanner Sensor Array Improved Signal Interpreter Improved Terrain Scan Processor Salvage Targeting Computer Target Analyzer Target Analyzer Target Analyzer Target Analyzer ECM Suite EM Pulse Gun EM Pulse Gun Spread Laser Spread Laser Pulse Rifle Advanced Beam Cannon Advanced Beam Cannon Heavy Assault Rifle High-powered Shotgun Enhanced Autogun Rocket Launcher [Rating: 28] Favorites ----------- Power Light Ion Engine Engine Light Ion Engine Power Core Light Nuclear Core Propulsion Aluminum Leg Treads Armored Treads Leg Aluminum Leg Hover Unit Hover Unit Utility Huge Storage Unit Device Sensor Array Storage Huge Storage Unit Processor Visual Processing Unit Weapon Light Assault Rifle Energy Gun Spread Laser Energy Cannon Beam Cannon Ballistic Gun Light Assault Rifle Build | -11 -10 -9 -8 ------- Run | Yrd Mat Mat Mat Slots Evolved 4 | . . 2 2 Power . | . . . . Propulsion 2 | . . 1 1 Utility 1 | . . . 1 Weapon 1 | . . 1 . Parts Attached 49 | 6 8 20 15 Power 8 | 1 2 3 2 Engine 6 | 1 2 3 . Core 2 | . . . 2 Reactor . | . . . . Propulsion 21 | 2 3 10 6 Treads 3 | . . . 3 Leg 17 | 2 2 10 3 Wheel . | . . . . Hover 1 | . 1 . . Flight . | . . . . Utility 6 | 1 2 1 2 Device 2 | . . 1 1 Storage 2 | 1 1 . . Processor 2 | . 1 . 1 Hackware . | . . . . Protection . | . . . . Artifact . | . . . . Weapon 14 | 2 1 6 5 Energy Gun 8 | 1 1 2 4 Energy Cannon 1 | . . 1 . Ballistic Gun 5 | 1 . 3 1 Ballistic Cannon . | . . . . Launcher . | . . . . Special Weapon . | . . . . Impact Weapon . | . . . . Slashing Weapon . | . . . . Piercing Weapon . | . . . . Special Melee Weapon . | . . . . Unidentified Prototypes 1 | . . . 1 Parts Lost 28 | . 4 10 14 Power 8 | . 2 3 3 Propulsion 8 | . 1 3 4 Utility 1 | . . . 1 Weapon 11 | . 1 4 6 Highest Loss Streak 5 | . 3 5 5 To Critical Strikes . | . . . . Average Slot Usage (%) 91 | . 96 83 89 Engine 10 | . 13 10 4 Leg 28 | . 27 31 27 Device 2 | . . 1 8 Storage 12 | . 14 11 9 Processor 8 | . 11 1 8 Energy Gun 12 | . 13 7 16 Ballistic Gun 14 | . 14 19 7 Naked Turns . | . . . . Heaviest Build 95 | 10 87 95 95 Greatest Support 60 | 20 20 30 60 Greatest Overweight (x) 31 | . 14 8 31 Average Overweight (x) 3 | . 3 2 2 Largest Inventory Capacity 25 | 8 25 25 25 Average Capacity 24 | 6 24 25 25 Most Carried 25 | 5 18 25 25 Average Carried 17 | 2 12 23 23 Final Capacity 25 | 8 25 25 25 Final Carried 23 | 2 18 22 23 Class Distribution -------------------- 55% | Mutant 28% | Scavenger-Gunner 12% | Scavenger-Mutant Dominant Class ---------------- Mutant | -10/Materials Scavenger-Gunner | -9/Materials Scavenger-Gunner | -8/Materials Resources | -11 -10 -9 -8 ----------- Run | Yrd Mat Mat Mat Matter Collected 936 | 186 181 357 212 Remotely . | . . . . Salvage Created 2192 | . 398 1247 547 Parts 131 | . 34 70 27 Haulers Intercepted 2 | . . . 2 Recyclers Shooed 6 | . 1 4 1 Parts Field Recycled . | . . . . Retrieved Matter . | . . . . Parts Self-Destructed . | . . . . Prevented . | . . . . Kills | -11 -10 -9 -8 ------- Run | Yrd Mat Mat Mat Combat Hostiles Destroyed 39 | . 8 18 13 Guns 34 | . 8 13 13 Cannons 5 | . . 5 . Classes Destroyed 9 | . 4 3 2 Worker 1 | . . 1 . Tunneler 1 | . . 1 . Hauler 2 | . . . 2 Recycler 8 | . 1 6 1 Watcher 8 | . 3 4 1 Swarmer 10 | . 3 4 3 Grunt 22 | . 5 10 7 Sentry 6 | . . 4 2 Hunter 1 | . . . 1 Best Kill Streak 6 | . 3 6 6 Combat Bots Only 5 | . 3 5 3 Max Kills in Single Turn 2 | . 1 2 2 Gunslinging 1 | . . . 1 Exploded . | . . . . Melee . | . . . . Uniques/NPCs Destroyed . | . . . . Combat | -11 -10 -9 -8 -------- Run | Yrd Mat Mat Mat Hostile Shots Fired 373 | . 71 134 168 Missed 90 | . 20 31 39 Damage Taken 3683 | . 565 1209 1909 Core 852 | . 109 183 560 Absorbed by Shields . | . . . . Regen/Repaired (Parts) 95 | . . 95 . Core Remaining (%) 70 | 100 56 54 . Volleys Fired 195 | . 50 79 66 Largest 3 | . 2 3 3 Hottest 155 | . 85 145 155 Shots Fired 418 | . 81 191 146 Gun 407 | . 81 180 146 Cannon 11 | . . 11 . Launcher . | . . . . Special . | . . . . Kinetic 233 | . 50 137 46 Thermal 179 | . 31 54 94 Explosive . | . . . . Electromagnetic 6 | . . . 6 Robot Hit Streak 14 | . 4 14 9 Robot Miss Streak 10 | . 3 7 10 Penetration Max . | . . . . Secondary Targets 9 | . 1 5 3 Max Gunslinging Chain 1 | . 1 1 1 Shots Hit Robots 266 | . 43 104 119 Core Hits 177 | . 24 63 90 Critical Kills 2 | . 1 . 1 Critical Parts Destroyed 3 | . . 3 . Critical Strikes 6 | . 2 3 1 Burn 1 | . 1 . . Destroy 5 | . 1 3 1 Melee Attacks . | . . . . Impact . | . . . . Slashing . | . . . . Piercing . | . . . . Sneak Attacks . | . . . . Combat Hostiles . | . . . . Follow-up Attacks . | . . . . Damage Inflicted 3326 | . 433 1352 1541 Guns 3166 | . 430 1195 1541 Cannons 157 | . . 157 . Explosions . | . . . . Melee . | . . . . Ramming 3 | . 3 . . Kinetic 1514 | . 258 802 454 Thermal 1746 | . 172 550 1024 Explosive . | . . . . Electromagnetic 63 | . . . 63 Impact . | . . . . Slashing . | . . . . Piercing . | . . . . Highest Corruption . | . . . . Average Corruption . | . . . . Corruption Purged . | . . . . Corruption Blocked . | . . . . Overload Shots . | . . . . Overflow Damage . | . . . . Projectiles . | . . . . Explosions . | . . . . Melee . | . . . . Knockbacks . | . . . . Impact . | . . . . Kinetic . | . . . . Secondary . | . . . . Self-Inflicted Damage . | . . . . Shots . | . . . . Rammed . | . . . . Targets Rammed 1 | . 1 . . Kicked 1 | . 1 . . Crushed . | . . . . Highest Temperature 534 | . 160 523 534 Average Temperature 137 | . 47 102 203 Received Heat Transfer 1401 | . 231 495 675 Effects 25 | . . 7 18 Shutdowns 4 | . . . 4 Energy Bleed 3 | . . 2 1 Interference 4 | . . . 4 Matter Decay 1 | . . . 1 Short Circuit 7 | . . 4 3 Damage (major) 5 | . . 1 4 Damage (core) 1 | . . . 1 Siege Activations . | . . . . Robots Corrupted . | . . . . Combat Hostiles . | . . . . Parts Fried . | . . . . Impact Corruptions . | . . . . Robots Melted . | . . . . Combat Hostiles . | . . . . Parts Melted 2 | . 1 . 1 Heat Transferred 3046 | . 461 1027 1558 Parts Sabotaged . | . . . . Parts Stolen . | . . . . Parts Stripped . | . . . . Power Chain Reactions . | . . . . Alert | -11 -10 -9 -8 ------- Run | Yrd Mat Mat Mat Peak Influence 242 | . 90 242 172 Initial 18 | . . . 18 Average 47 | . 14 100 63 Maximum Alert Level 1 | . . 1 . Low Security (%) 99 | 100 100 99 100 Level 1 . | . . . . Level 2 . | . . . . Level 3 . | . . . . Level 4 . | . . . . Level 5 . | . . . . High Security . | . . . . Max Security . | . . . . Squads Dispatched 5 | . . . 5 Investigation 1 | . . . 1 Extermination . | . . . . Reinforcement 1 | . . . 1 Assault . | . . . . Garrison 3 | . . . 3 Intercept . | . . . . Searches Triggered . | . . . . Construction Impeded . | . . . . Haulers Reinforced . | . . . . Active Scanning Responses . | . . . . Cargo Convoy Interrupts . | . . . . Stealth | -11 -10 -9 -8 --------- Run | Yrd Mat Mat Mat Distress Signals 5 | . 1 1 3 Communications Jammed . | . . . . Distress Signals . | . . . . Times Spotted 64 | . 14 27 23 Peak Tracking Total 6 | . 3 6 5 Tactical Retreats 2 | . . 2 . Traps | -11 -10 -9 -8 ------- Run | Yrd Mat Mat Mat Traps Triggered 1 | . . . 1 Indirectly . | . . . . Trap Hack Attempts . | . . . . Triggered . | . . . . Disarmed . | . . . . Reprogrammed . | . . . . Reused . | . . . . Traps Extracted . | . . . . Installed . | . . . . Triggered . | . . . . Machines | -11 -10 -9 -8 ---------- Run | Yrd Mat Mat Mat Machines Disabled 1 | . . . 1 Max in Single Turn 1 | . . . 1 Machines Repaired . | . . . . Machines Dismantled . | . . . . Machines Sabotaged . | . . . . Overloaded Fab Kills . | . . . . Hacking | -11 -10 -9 -8 --------- Run | Yrd Mat Mat Mat Machines Accessed 11 | . 5 3 3 Terminals 6 | . 4 1 1 Fabricators . | . . . . Repair Stations 2 | . . 1 1 Recycling Units 2 | . 1 1 . Scanalyzers . | . . . . Garrison Access 1 | . . . 1 Total Hacks 26 | . 7 9 10 Successful 14 | . 4 7 3 Failed 12 | . 3 2 7 Catastrophic 2 | . 1 . 1 Database Lockouts . | . . . . Manual . | . . . . Terminals 13 | . 6 1 6 Fabricators . | . . . . Repair Stations 10 | . . 7 3 Recycling Units 2 | . 1 1 . Scanalyzers . | . . . . Garrison Access 1 | . . . 1 Terminal Hacks 7 | . 4 1 2 Record 2 | . 1 . 1 Robot Analysis 1 | . 1 . . Prototype ID Bank 2 | . 1 1 . Emergency Access Points 1 | . . . 1 Alert Level 1 | . 1 . . Fabricator Hacks . | . . . . Repair Station Hacks 6 | . . 5 1 Scan Component 4 | . . 3 1 Repair 2 | . . 2 . Recycling Unit Hacks 1 | . . 1 . Report Inventory 1 | . . 1 . Scanalyzer . | . . . . Garrison Access Hacks . | . . . . Unauthorized Hacks . | . . . . Terminals . | . . . . Fabricators . | . . . . Repair Stations . | . . . . Recycling Units . | . . . . Scanalyzers . | . . . . Garrison Access . | . . . . Data Cores Recovered . | . . . . Used . | . . . . Hacking Detections 8 | . 4 1 3 Full Trace Events . | . . . . Feedback Events . | . . . . Feedback Blocked . | . . . . Robot Schematics Acquired . | . . . . Robots Built . | . . . . Authchips . | . . . . Time . | . . . . Total Robot Build Rating . | . . . . Part Schematics Acquired . | . . . . Parts Built . | . . . . Authchips . | . . . . Time . | . . . . Total Part Build Rating . | . . . . Parts Repaired 2 | . . 2 . Time 64 | . . 64 . Parts Recycled . | . . . . Recycled Matter . | . . . . Retrieved Matter . | . . . . Retrieved Components . | . . . . Parts Scanalyzed . | . . . . Part Schematics Acquired . | . . . . Parts Damaged . | . . . . Bothacking | -11 -10 -9 -8 ------------ Run | Yrd Mat Mat Mat Used RIF Installer . | . . . . Robots Hacked . | . . . . Non-combat . | . . . . Combat . | . . . . Robot Hacks Applied . | . . . . Relay Couplers Released . | . . . . Fabnet Peak Effective % . | . . . . Robots Rewired . | . . . . Allies Hacked . | . . . . Hacks Repelled . | . . . . Allies | -11 -10 -9 -8 -------- Run | Yrd Mat Mat Mat Total Allies . | . . . . Largest Group . | . . . . Highest-Rated Group . | . . . . Highest-Rated Ally . | . . . . Total Orders . | . . . . Ally Attacks . | . . . . Total Damage . | . . . . Kills . | . . . . Allies Corrupted . | . . . . Allies Melted . | . . . . Intel | -11 -10 -9 -8 ------- Run | Yrd Mat Mat Mat Robot Analysis Total 1 | . 1 . . Derelict Logs Recovered . | . . . . Drone Launches . | . . . . Drone Recoveries . | . . . . Exploration | -11 -10 -9 -8 ------------- Run | Yrd Mat Mat Mat Turns Passed 4772 | 60 2437 1279 996 Spaces Moved 1258 | 48 604 343 263 Core 22 | 16 . . 6 Treads 12 | . . . 12 Legs 1213 | 32 593 343 245 Wheels . | . . . . Hover 11 | . 11 . . Flight . | . . . . Fastest Speed 50 | 50 120 260 250 Average Speed 328 | 96 378 295 298 Slowest Speed 1600 | 120 910 680 1600 Overloaded Moves . | . . . . Propulsion Burnouts . | . . . . Robots Hopped . | . . . . Cave-ins Triggered . | . . . . Exploration Rate (%) 34 | 4 79 29 24 Regions Visited 3 Branch Regions . Pre-discovered Areas . | . . . . Known Exits Taken . | . . . . Unknown Exits Taken 3 | 1 1 1 . Scrap Searched . | . . . . Spaces Dug . | . . . . Terrain Destroyed . | . . . . Melee . | . . . . Projectile . | . . . . AOE . | . . . . Terrain Rammed . | . . . . Walls Destroyed . | . . . . Machines Disabled . | . . . . Actions | -11 -10 -9 -8 --------- Run | Yrd Mat Mat Mat Total 1572 | 61 687 466 358 Wait . | . . . . Move 1255 | 47 603 342 263 Hop . | . . . . Pick Up 59 | 8 23 18 10 Fast Attach 13 | . . 7 6 Attach 29 | 6 5 10 8 Detach . | . . . . Swap 7 | . 3 3 1 Drop 13 | . 2 7 4 Fire 195 | . 50 79 66 Melee . | . . . . Ram . | . . . . Kick 1 | . 1 . . Crush . | . . . . Escape Stasis . | . . . . Rewire . | . . . . Trap . | . . . . Miscellaneous . | . . . . Route ------- -11/Scrapyard -10/Materials (discovered 3 exits: *Mat x3) -9/Materials (discovered 2 exits: *Mat / [*Min]) -8/Materials History --------- Turn | Location | Event 6 | -11/Scrapyard | Discovered new exit (range 15) 61 | -11/Scrapyard | Entered Materials 301 | -10/Materials | Build established: Mutant 537 | -10/Materials | Discovered new exit (range 16) 1409 | -10/Materials | Lost 3 parts (1p1n1w) 1509 | -10/Materials | Discovered new exit (range 16) 2478 | -10/Materials | Discovered new exit (range 4) 2498 | -10/Materials | Entered another Materials area 2498 | -9/Materials | Evolved 2 slots: Propulsion x1, Weapon x1 2861 | -9/Materials | Discovered new exit (range 14) 3017 | -9/Materials | Repaired Aluminum Leg 3065 | -9/Materials | Repaired Lgt. Nuclear Core 3167 | -9/Materials | Discovered new exit (range 16) 3231 | -9/Materials | Build established: Scavenger-Gunner 3504 | -9/Materials | Lost 5 parts (1p2n2w) 3777 | -9/Materials | Entered another Materials area 3777 | -8/Materials | Evolved 2 slots: Propulsion x1, Utility x1 4549 | -8/Materials | Garrison activated, responded to threat 4563 | -8/Materials | Core integrity fell below 50% 4606 | -8/Materials | Lost 3 parts (2n1w) 4642 | -8/Materials | Core integrity fell below 20% 4773 | -8/Materials | Destroyed by Y-45 Defender with Heavy Assault Rifle Last Messages --------------- 04626_ Spread Laser destroyed. 04631_ U-05 Engineer builds a Door. 04641_ Particle Gun melted. 04641_ G-47 Trooper destroyed. 04648_ K-01 Serf collects debris. 04673_ Acquired Pulse Rifle. 04703_ Acquired Arm. Treads. 04727_ Acquired Targeting Computer. 04728_ Discarded Broken Targeting Computer. 04731_ Acquired 72 matter. 04743_ Acquired Aluminum Leg. 04753_ Critical hit (Burn: +37). 04755_ G-47 Trooper destroyed. 04759_ Enh. Autogun destroyed. 04761_ Beam Rifle destroyed. 04763_ Imp. Heat Sink destroyed. 04764_ Critical hit (Burn: +37). 04767_ Door malfunctions. 04768_ EM Pulse Gun destroyed. 04770_ Lgt. Nuclear Core destroyed. Map ----- +----------------------------------------------------+ | | | | | | | | | ?????????????????????????????????????????????????? | | ?????????????????????????????????????????????????? | | ?????????????????????????????????????????????????? | | ?????????????????????????????????????????????????? | | ?????????????????????????????????????????????????? | | ?????????????????????????????????????????????????? | | ????????????????????????? ???????????????????????? | | ????????????????????????? ???????????????????????? | | ????????????????????????? ???????????????????????? | | ????????????????????????? ???????????????????????? | | ????????????????????????? ???????????????????????? | | ???????????????????????##+###????????????????????? | | ??????????????????????? ?????????????????????? | | ??????????????????????? ?????????????????????? | | ??????????????????????? o?????????????????????? | | ?????????????????????#?#Yg #?#???????????????????? | | ????????????????????? # # "???????????????????? | | ?????????????????????? #g g# ????????????????????? | | ???????????????????????Y% /?????????????????????? | | ???????????????????????#%[ #?????????????????????? | | ???????????????????????#*% #?????????????????????? | | ???????????????????????# @ #?????????????????????? | | ???????????????????????# #?????????????????????? | | ???????????????????????# #?????????????????????? | | ??????##################[ #?????????????????????? | | ??????# # [ %+ #?????????????????????? | | ??????# """ # # #?????????????????????? | | ??????# """ # # #?????????????????????? | | ??????# """ # # #?????????????????????? | | ??????# " " # # #?????????????????????? | | ??????# "G" # ! ! # #?????????????????????? | | ??????# ! """ ######## u#?????????????????????? | | ??????# # + #?????????????????????? | | ????#########+###] """ # #?????????????????????? | | ????# # ## "R" # #?????????????????????? | | ????# """ # ## " " # #?????????????????????? | | ????# """ # ## # #?????????????????????? | | ????# """!+ ## """ # ##############????????? | | ????# # ## """ # # #????????? | | ????# # ##! """ # + """ """ #????????? | | ????######## ## # # """ """ #????????? | | ???????????# ## """ # # """ """ #????????? | | ???????????# ## """ # # #????????? | | ???????????# ## """ # !##############????????? | | ???????????# ## # =/#?????????????????????? | | ?########### ##### ### /%#?????????????????????? | +----------------------------------------------------+ Best States ------------- Heat Dissipation 45 Energy Generation 14 Energy Capacity 250 Matter Stores 300 Matter Capacity 300 Sight Range 18 Robot Scan Range 14 Terrain Scan Density 10 Evasion (%) 55 Targeting Accuracy 5 Recoil Reduction 3 Item Schematics ----------------- None Robot Schematics ------------------ None Fabricated ------------ Nothing Alien Tech Used ----------------- None Achievements -------------- None Challenges ------------ None Game ------ Seed AlphaAdvancedDesublimator Manual? 0 Play Time 00:40:28 Cumulative 5.9 hours Start 2024.04.01 @ 13:31:38 End 2024.04.01 @ 15:22:39 Sessions 1 Manual Loads 0 Difficulty Rogue Special Mode None Game No. 9 Rogue 9 Adventurer 0 Explorer 0 Win Type - Total 0 Types 0/0/0/0/0/0/0/0/0 Lore% 12 Gallery% 9 Achievement% 11 Wizard Run 0 Options --------- Layout 1 ASCII 0 Keyboard 0 Movement Mouse Keybinds 0 Fullscreen 1 Font 24/Smallcaps Map View 50x35 Zoom Use 0% Tactical HUD 1 Map Filters NONE Filters NONE Steam 0 RUN: 8a12440a-8092-4129-b2b5-7e90042ec2ef